Workbook

Sheet паспорт13,9
A1: ПАТ "УКРТРАНСГАЗ" | H1: ПАСПОРТ ФІЗИКО-ХІМІЧНИХ ПОКАЗНИКІВ ПРИРОДНОГО ГАЗУ № 13
A2: Філія "УМГ "Київтрансгаз" | H2: переданого Красилівським ЛВУМГ та прийнятого ПАТ "Хмельницькгаз" ПАТ " Шепетівкагаз" та прямими споживачами: АГНКС Шепетівка
A3: Красилівське ЛВУМГ | H3: Маршрут № 13
A4: Вимірювальна хіміко-аналітична лабораторія
A5: Свідоцтво № 27-"Ч"-17 чинно до 10.02.2020 р. | L5: по газопроводу ДК | U5: за період з | W5: 2017-09-01 | Y5: по | Z5: 2017-09-30
A7: Число місяця | B7: Компонентний склад, % мол. | N7: Фізико-хімічні показники газу обчислені на основі компонентного складу, 101,325 кПа | X7: Температура точки роси за вологою (Р = 3.92 МПа), °С | Y7: Температура точки роси за вуглеводнями, °С | Z7: Вміст сірководню, г/м3 | AA7: Вміст меркаптанової сірки, г/м3 | AB7: Вміст механічних домішок, г/м3
N8: Густина абсолютна, кг/м3,при 20 °С, | O8: Температура вимірювання/згоряння при 20/25°С
B9: метан, С1 | C9: етан, С2 | D9: пропан, С3 | E9: ізо-бутан, і-С4 | F9: н-бутан, н-С4 | G9: нео-пентан, нео-С5 | H9: ізо-пентан, і-С5 | I9: н-пентан, н-С5 | J9: гексани та вищі, С6+ | K9: кисень, О2 | L9: азот, N2 | M9: діоксид вуглецю, CО2 | O9: Теплота згоряння нижча | R9: Теплота згоряння вища | U9: Число Воббе вище
O10: ккал/м³ | P10: МДж/м³ | Q10: кВт⋅год/м³ | R10: ккал/м³ | S10: МДж/м³ | T10: кВт⋅год/м³ | U10: ккал/м³ | V10: МДж/м³ | W10: кВт⋅год/м³
A11: 1 | O11: =P11*238.8459 -> 8261.679681 | P11: 34.59 | Q11: =P11/3.6 -> 9.608333333 | R11: =S11*238.8459 -> 9147.79797 | S11: 38.3 | T11: =S11/3.6 -> 10.63888889 | W11: =V11/3.6 -> 0 | AC11: =SUM(B11:M11)+$K$42+$N$42 -> 0
A12: 2 | O12: 8261.679681 | P12: 34.59 | Q12: =P12/3.6 -> 9.608333333 | R12: 9147.79797 | S12: 38.3 | T12: =S12/3.6 -> 10.63888889 | W12: =V12/3.6 -> 0 | AC12: 0
A13: 3 | O13: 8261.679681 | P13: 34.59 | Q13: =P13/3.6 -> 9.608333333 | R13: 9147.79797 | S13: 38.3 | T13: =S13/3.6 -> 10.63888889 | W13: =V13/3.6 -> 0 | AC13: 0 | AD13: =IF(AC13=100,"ОК"," ") -> 
A14: 4 | B14: 89.6077 | C14: 5.0044 | D14: 1.1664 | E14: 0.1237 | F14: 0.1988 | G14: 0.0045 | H14: 0.0506 | I14: 0.0441 | J14: 0.0832 | K14: 0.0078 | L14: 1.7281 | M14: 1.9806 | N14: 0.7535 | O14: 8256.902763 | P14: 34.57 | Q14: 9.602777778 | R14: 9143.021052 | S14: 38.28 | T14: 10.63333333 | U14: 11560 | V14: 48.4 | W14: =V14/3.6 -> 13.44444444 | X14: -4.5 | Y14: -4.9 | AC14: 99.9999 | AD14: =IF(AC14=100,"ОК"," ") -> 
A15: 5 | O15: 8256.902763 | P15: 34.57 | Q15: 9.602777778 | R15: 9143.021052 | S15: 38.28 | T15: 10.63333333 | W15: 0 | AC15: 0
A16: 6 | O16: 8256.902763 | P16: 34.57 | Q16: 9.602777778 | R16: 9143.021052 | S16: 38.28 | T16: 10.63333333 | W16: =V16/3.6 -> 0 | Z16: 0.0002 | AA16: 0.0006 | AC16: 0
A17: 7 | O17: 8256.902763 | P17: 34.57 | Q17: 9.602777778 | R17: 9143.021052 | S17: 38.28 | T17: 10.63333333 | W17: =V17/3.6 -> 0 | AB17: 0.0008 | AC17: 0
A18: 8 | O18: 8256.902763 | P18: 34.57 | Q18: 9.602777778 | R18: 9143.021052 | S18: 38.28 | T18: 10.63333333 | W18: =V18/3.6 -> 0 | AC18: 0
A19: 9 | O19: 8256.902763 | P19: 34.57 | Q19: 9.602777778 | R19: 9143.021052 | S19: 38.28 | T19: 10.63333333 | W19: =V19/3.6 -> 0 | AC19: 0
A20: 10 | O20: 8256.902763 | P20: 34.57 | Q20: 9.602777778 | R20: 9143.021052 | S20: 38.28 | T20: 10.63333333 | W20: =V20/3.6 -> 0 | AC20: 0
A21: 11 | B21: 89.7026 | C21: 4.9378 | D21: 1.1709 | E21: 0.1267 | F21: 0.2094 | G21: 0.0044 | H21: 0.0553 | I21: 0.0505 | J21: 0.0922 | K21: 0.0068 | L21: 1.6675 | M21: 1.976 | N21: 0.7536 | O21: 8266.456599 | P21: 34.61 | Q21: 9.613888889 | R21: 9154.963347 | S21: 38.33 | T21: 10.64722222 | U21: 11573 | V21: 48.46 | W21: =V21/3.6 -> 13.46111111 | X21: -4.7 | Y21: -5.2 | AC21: 100.0001
A22: 12 | O22: 8266.456599 | P22: 34.61 | Q22: 9.613888889 | R22: 9154.963347 | S22: 38.33 | T22: 10.64722222 | W22: 0 | AC22: 0
A23: 13 | O23: 8266.456599 | P23: 34.61 | Q23: 9.613888889 | R23: 9154.963347 | S23: 38.33 | T23: 10.64722222 | W23: =V23/3.6 -> 0 | AC23: 0
A24: 14 | O24: 8266.456599 | P24: 34.61 | Q24: 9.613888889 | R24: 9154.963347 | S24: 38.33 | T24: 10.64722222 | W24: =V24/3.6 -> 0 | AC24: 0
A25: 15 | O25: 8266.456599 | P25: 34.61 | Q25: 9.613888889 | R25: 9154.963347 | S25: 38.33 | T25: 10.64722222 | W25: 0 | AC25: 0
A26: 16 | O26: 8266.456599 | P26: 34.61 | Q26: 9.613888889 | R26: 9154.963347 | S26: 38.33 | T26: 10.64722222 | W26: =V26/3.6 -> 0 | AC26: 0
A27: 17 | O27: 8266.456599 | P27: 34.61 | Q27: 9.613888889 | R27: 9154.963347 | S27: 38.33 | T27: 10.64722222 | W27: =V27/3.6 -> 0 | AC27: 0
A28: 18 | B28: 89.6932 | C28: 4.9406 | D28: 1.1633 | E28: 0.1257 | F28: 0.2068 | G28: 0.0044 | H28: 0.0534 | I28: 0.0483 | J28: 0.0897 | K28: 0.0057 | L28: 1.6979 | M28: 1.9709 | N28: 0.7533 | O28: 8261.679681 | P28: 34.59 | Q28: 9.608333333 | R28: 9147.79797 | S28: 38.3 | T28: 10.63888889 | U28: 11568 | V28: 48.43 | W28: 13.45277778 | X28: -5.8 | Y28: -6.8 | AC28: 99.9999
A29: 19 | O29: 8261.679681 | P29: 34.59 | Q29: 9.608333333 | R29: 9147.79797 | S29: 38.3 | T29: 10.63888889 | W29: 0 | AC29: 0
A30: 20 | O30: 8261.679681 | P30: 34.59 | Q30: 9.608333333 | R30: 9147.79797 | S30: 38.3 | T30: 10.63888889 | W30: =V30/3.6 -> 0 | AC30: 0 | AD30: =IF(AC30=100,"ОК"," ") -> 
A31: 21 | O31: 8261.679681 | P31: 34.59 | Q31: 9.608333333 | R31: 9147.79797 | S31: 38.3 | T31: 10.63888889 | W31: =V31/3.6 -> 0 | AB31: 0.0008 | AC31: 0
A32: 22 | O32: 8261.679681 | P32: 34.59 | Q32: 9.608333333 | R32: 9147.79797 | S32: 38.3 | T32: 10.63888889 | W32: 0 | AC32: 0
A33: 23 | O33: 8261.679681 | P33: 34.59 | Q33: 9.608333333 | R33: 9147.79797 | S33: 38.3 | T33: 10.63888889 | W33: 0 | AC33: 0 | AD33: =IF(AC33=100,"ОК"," ") -> 
A34: 24 | O34: 8261.679681 | P34: 34.59 | Q34: 9.608333333 | R34: 9147.79797 | S34: 38.3 | T34: 10.63888889 | W34: 0 | AC34: 0
A35: 25 | B35: 89.6965 | C35: 4.922 | D35: 1.1449 | E35: 0.1224 | F35: 0.1997 | G35: 0.0044 | H35: 0.0524 | I35: 0.0478 | J35: 0.0875 | K35: 0.0065 | L35: 1.7365 | M35: 1.9793 | N35: 0.753 | O35: 8249.737386 | P35: 34.54 | Q35: 9.594444444 | R35: 9138.244134 | S35: 38.26 | T35: 10.62777778 | U35: 11556 | V35: 48.38 | W35: 13.43888889 | X35: -6.1 | Y35: -6.4 | AC35: 99.9999
A36: 26 | O36: 8249.737386 | P36: 34.54 | Q36: 9.594444444 | R36: 9138.244134 | S36: 38.26 | T36: =S36/3.6 -> 10.62777778 | W36: 0 | Z36: 0.0002 | AA36: 0.0006 | AC36: 0
A37: 27 | O37: 8249.737386 | P37: 34.54 | Q37: 9.594444444 | R37: 9138.244134 | S37: 38.26 | T37: 10.62777778 | W37: =V37/3.6 -> 0 | AC37: 0
A38: 28 | O38: 8249.737386 | P38: 34.54 | Q38: 9.594444444 | R38: 9138.244134 | S38: 38.26 | T38: 10.62777778 | W38: =V38/3.6 -> 0 | AC38: 0
A39: 29 | O39: 8249.737386 | P39: 34.54 | Q39: =P39/3.6 -> 9.594444444 | R39: 9138.244134 | S39: 38.26 | T39: =S39/3.6 -> 10.62777778 | W39: 0 | AC39: 0
A40: 30 | O40: 8249.737386 | P40: 34.54 | Q40: =P40/3.6 -> 9.594444444 | R40: 9138.244134 | S40: 38.26 | T40: =S40/3.6 -> 10.62777778 | W40: 0 | AC40: 0
A41: 31 | O41: 0 | P41: 0 | Q41: =P41/3.6 -> 0 | R41: 0 | S41: 0 | T41: =S41/3.6 -> 0 | W41: 0 | AC41: 0
A42: Вміст одоранта при одоризації становить 16 г на 1 000 м³ газу | O42: =SUMPRODUCT(O11:O41,' розрахунок13,9'!Q7:Q37)/' розрахунок13,9'!Q38 -> 8258.461983 | P42: =SUMPRODUCT(P11:P41,' розрахунок13,9'!Q7:Q37)/' розрахунок13,9'!Q38 -> 34.57652814 | Q42: =SUMPRODUCT(Q11:Q41,' розрахунок13,9'!Q7:Q37)/' розрахунок13,9'!Q38 -> 9.60459115 | R42: =SUMPRODUCT(R11:R41,' розрахунок13,9'!Q7:Q37)/' розрахунок13,9'!Q38 -> 9145.866036 | S42: =SUMPRODUCT(S11:S41,' розрахунок13,9'!Q7:Q37)/' розрахунок13,9'!Q38 -> 38.29191138 | T42: =SUMPRODUCT(T11:T41,' розрахунок13,9'!Q7:Q37)/' розрахунок13,9'!Q38 -> 10.63664205
H43: Середньозважене значення теплоти згоряння:
C46: В.о.начальника управління Красилівського ЛВУМГ Семенюк П.В.
D47: Підрозділу підприємства, якому підпорядкована лабораторія | P47: прізвище | S47: підпис | W47: дата
C48: Завідувач лабораторією Пілецька С.А.
D49: Лабораторія, де здійснювалось вимірювання газу | P49: прізвище | S49: підпис | W49: дата
C50: Начальник служби метрології Мягкий С.В.
D51: Підрозділу, відповідального за облік газу за маршрутом | P51: прізвище | S51: підпис | W51: дата

Sheet розрахунок13,9
A2: Додаток до Паспорту фізико-хімічних показників природного газу по маршруту № 13
A4: Число місяця | B4: Теплота згоряння вища, МДж/м3 | C4: Хмельницька область | Q4: Загальний обсяг газу, м3
C5: Обсяг газу переданого за добу, м3
C6: АГНКС Шепетівка | D6: ГРС Пасічна | E6: ГРС Самчики | F6: ГРС Староконстантинів | G6: ГРС Миролюбне | H6: ГРС Кузьмин | I6: ГРС Щиборівка | J6: ГРС Хролін | K6: ГРС Гриців | L6: ГРС Шепетівка | M6: ГРС Камянка | N6: ГРС Славута | O6: ГРСРадошівка | P6: ГРС Ізяслав
A7: 1 | B7: 38.3 | C7: 1158 | D7: 3119 | E7: 3178 | F7: 22383 | G7: 712 | H7: 2192 | I7: 961 | J7: 275 | K7: 2935 | L7: 15270 | M7: 491 | N7: 29788 | O7: 294 | P7: 5532 | Q7: =SUM(C7:P7) -> 88288
A8: 2 | B8: 38.3 | C8: 762 | D8: 3616 | E8: 2900 | F8: 22676 | G8: 775 | H8: 2352 | I8: 1089 | J8: 296 | K8: 2891 | L8: 15809 | M8: 615 | N8: 24639 | O8: 303 | P8: 5646 | Q8: =SUM(C8:P8) -> 84369
A9: 3 | B9: 38.3 | C9: 333 | D9: 3243 | E9: 2469 | F9: 22036 | G9: 701 | H9: 2211 | I9: 937 | J9: 327 | K9: 1696 | L9: 17627 | M9: 546 | N9: 29804 | O9: 296 | P9: 5846 | Q9: =SUM(C9:P9) -> 88072
A10: 4 | B10: 38.28 | C10: 785 | D10: 4771 | E10: 2838 | F10: 23601 | G10: 784 | H10: 2332 | I10: 1056 | J10: 346 | K10: 2884 | L10: 17387 | M10: 528 | N10: 28795 | O10: 299 | P10: 6134 | Q10: 92540
A11: 5 | B11: 38.28 | C11: 972 | D11: 5932 | E11: 3205 | F11: 24724 | G11: 747 | H11: 2437 | I11: 1071 | J11: 463 | K11: 2838 | L11: 20865 | M11: 586 | N11: 35489 | O11: 305 | P11: 7137 | Q11: 106771
A12: 6 | B12: 38.28 | C12: 982 | D12: 7514 | E12: 3017 | F12: 24750 | G12: 874 | H12: 2577 | I12: 1151 | J12: 462 | K12: 1855 | L12: 22951 | M12: 668 | N12: 50449 | O12: 318 | P12: 7508 | Q12: 125076
A13: 7 | B13: 38.28 | C13: 1200 | D13: 7119 | E13: 3570 | F13: 24822 | G13: 797 | H13: 2529 | I13: 1178 | J13: 492 | K13: 1829 | L13: 22980 | M13: 717 | N13: 51084 | O13: 343 | P13: 7880 | Q13: 126540
A14: 8 | B14: 38.28 | C14: 797 | D14: 7025 | E14: 3926 | F14: 26118 | G14: 837 | H14: 2543 | I14: 1152 | J14: 449 | K14: 1808 | L14: 22008 | M14: 692 | N14: 47834 | O14: 341 | P14: 7594 | Q14: 123124
A15: 9 | B15: 38.28 | C15: 1111 | D15: 7664 | E15: 3240 | F15: 21868 | G15: 868 | H15: 2618 | I15: 1197 | J15: 334 | K15: 2270 | L15: 26217 | M15: 713 | N15: 47027 | O15: 355 | P15: 7204 | Q15: 122686
A16: 10 | B16: 38.28 | C16: 375 | D16: 6731 | E16: 4205 | F16: 25610 | G16: 787 | H16: 2315 | I16: 1047 | J16: 350 | K16: 2213 | L16: 28625 | M16: 586 | N16: 43649 | O16: 321 | P16: 7403 | Q16: 124217
A17: 11 | B17: 38.33 | C17: 516 | D17: 5832 | E17: 3908 | F17: 21104 | G17: 612 | H17: 2366 | I17: 900 | J17: 267 | K17: 1406 | L17: 24441 | M17: 501 | N17: 45989 | O17: 305 | P17: 6815 | Q17: 114962
A18: 12 | B18: 38.33 | C18: 1091 | D18: 6429 | E18: 3489 | F18: 29316 | G18: 656 | H18: 2261 | I18: 1038 | J18: 313 | K18: 1303 | L18: 95426 | M18: 811 | N18: 43067 | O18: 289 | P18: 7181 | Q18: =SUM(C18:P18) -> 192670
A19: 13 | B19: 38.33 | C19: 1191 | D19: 6887 | E19: 2628 | F19: 28017 | G19: 697 | H19: 2278 | I19: 1124 | J19: 412 | K19: 1378 | L19: 118955 | M19: 603 | N19: 47307 | O19: 360 | P19: 7128 | Q19: 218965
A20: 14 | B20: 38.33 | C20: 1205 | D20: 6785 | E20: 3271 | F20: 25493 | G20: 708 | H20: 2225 | I20: 1058 | J20: 393 | K20: 1436 | L20: 122929 | M20: 594 | N20: 43701 | O20: 345 | P20: 7090 | Q20: 217233
A21: 15 | B21: 38.33 | C21: 1180 | D21: 6865 | E21: 3598 | F21: 36603 | G21: 711 | H21: 2294 | I21: 1109 | J21: 428 | K21: 1871 | L21: 133740 | M21: 601 | N21: 48247 | O21: 361 | P21: 7214 | Q21: 244822
A22: 16 | B22: 38.33 | C22: 667 | D22: 8247 | E22: 2936 | F22: 33853 | G22: 883 | H22: 2531 | I22: 1221 | J22: 425 | K22: 1795 | L22: 134443 | M22: 768 | N22: 42610 | O22: 369 | P22: 7681 | Q22: 238429
A23: 17 | B23: 38.33 | C23: 327 | D23: 6510 | E23: 2636 | F23: 30557 | G23: 705 | H23: 2170 | I23: 993 | J23: 335 | K23: 1419 | L23: 132148 | M23: 608 | N23: 46062 | O23: 352 | P23: 7617 | Q23: 232439
A24: 18 | B24: 38.3 | C24: 740 | D24: 6558 | E24: 2888 | F24: 36641 | G24: 658 | H24: 2208 | I24: 1048 | J24: 377 | K24: 1767 | L24: 139069 | M24: 589 | N24: 47228 | O24: 308 | P24: 7531 | Q24: 247610
A25: 19 | B25: 38.3 | C25: 1084 | D25: 7074 | E25: 4453 | F25: 42731 | G25: 777 | H25: 2504 | I25: 1072 | J25: 416 | K25: 2094 | L25: 142267 | M25: 603 | N25: 47015 | O25: 291 | P25: 7384 | Q25: 259765
A26: 20 | B26: 38.3 | C26: 1098 | D26: 8378 | E26: 4456 | F26: 51401 | G26: 814 | H26: 2363 | I26: 1084 | J26: 422 | K26: 1909 | L26: 137274 | M26: 574 | N26: 46755 | O26: 264 | P26: 7785 | Q26: =SUM(C26:P26) -> 264577
A27: 21 | B27: 38.3 | C27: 1200 | D27: 6589 | E27: 2865 | F27: 56385 | G27: 518 | H27: 2321 | I27: 1091 | J27: 396 | K27: 1987 | L27: 134838 | M27: 612 | N27: 49588 | O27: 287 | P27: 8317 | Q27: 266994
A28: 22 | B28: 38.3 | C28: 1122 | D28: 7699 | E28: 3741 | F28: 49051 | G28: 985 | H28: 3213 | I28: 1454 | J28: 588 | K28: 2482 | L28: 138042 | M28: 717 | N28: 49740 | O28: 331 | P28: 9019 | Q28: 268184
A29: 23 | B29: 38.3 | C29: 920 | D29: 9837 | E29: 3809 | F29: 51594 | G29: 1061 | H29: 3263 | I29: 1436 | J29: 566 | K29: 2302 | L29: 140211 | M29: 791 | N29: 51065 | O29: 343 | P29: 8997 | Q29: 276195
A30: 24 | B30: 38.3 | C30: 390 | D30: 10331 | E30: 4489 | F30: 44676 | G30: 1199 | H30: 3707 | I30: 1489 | J30: 766 | K30: 2726 | L30: 146038 | M30: 966 | N30: 51668 | O30: 405 | P30: 10691 | Q30: 279541
A31: 25 | B31: 38.26 | C31: 683 | D31: 8342 | E31: 3642 | F31: 53147 | G31: 957 | H31: 2831 | I31: 1224 | J31: 578 | K31: 2033 | L31: 141160 | M31: 727 | N31: 50329 | O31: 343 | P31: 9067 | Q31: 275063
A32: 26 | B32: 38.26 | C32: 1137 | D32: 8518 | E32: 4769 | F32: 58415 | G32: 891 | H32: 2867 | I32: 1258 | J32: 538 | K32: 2125 | L32: 146025 | M32: 679 | N32: 47898 | O32: 311 | P32: 10041 | Q32: 285472
A33: 27 | B33: 38.26 | C33: 1098 | D33: 9370 | E33: 4204 | F33: 66179 | G33: 1014 | H33: 3158 | I33: 1189 | J33: 617 | K33: 2545 | L33: 151988 | M33: 773 | N33: 51313 | O33: 352 | P33: 13361 | Q33: 307161
A34: 28 | B34: 38.26 | C34: 1171 | D34: 9810 | E34: 5156 | F34: 80071 | G34: 795 | H34: 3870 | I34: 1521 | J34: 806 | K34: 3207 | L34: 158735 | M34: 1138 | N34: 60696 | O34: 426 | P34: 19018 | Q34: 346420
A35: 29 | B35: 38.26 | C35: 1196 | D35: 13160 | E35: 6002 | F35: 87623 | G35: 1534 | H35: 4497 | I35: 1601 | J35: 916 | K35: 3849 | L35: 162428 | M35: 1323 | N35: 64707 | O35: 509 | P35: 16133 | Q35: 365478
A36: 30 | B36: 38.26 | C36: 1623 | D36: 18580 | E36: 7705 | F36: 90455 | G36: 2046 | H36: 5699 | I36: 2254 | J36: 1120 | K36: 4811 | L36: 174107 | M36: 1733 | N36: 65245 | O36: 684 | P36: 18228 | Q36: 394290
A37: 31 | B37: 0 | C37: 0 | D37: 0 | E37: 0 | F37: 0 | G37: 0 | H37: 0 | I37: 0 | J37: 0 | K37: 0 | L37: 0 | M37: 0 | N37: 0 | O37: 0 | P37: 0 | Q37: 0
A38: Загальний обсяг газу, м3 | C38: =SUM(C7:C37) -> 28114 | D38: =SUM(D7:D37) -> 228535 | E38: 113193 | F38: =SUM(F7:F37) -> 1211900 | G38: 26103 | H38: 82732 | I38: =SUM(I7:I37) -> 36003 | J38: 14473 | K38: 67664 | L38: 2884003 | M38: =SUM(M7:M37) -> 21853 | N38: 1388788 | O38: 10410 | P38: 264182 | Q38: =SUM(Q7:Q37) -> 6377953
A39: Енергія, МДж | C39: =SUMPRODUCT(B7:B37,C7:C37) -> 1076550.75 | D39: =SUMPRODUCT(B7:B37,D7:D37) -> 8750670.83 | E39: =SUMPRODUCT(B7:B37,E7:E37) -> 4334226.74 | F39: =SUMPRODUCT(B7:B37,F7:F37) -> 46401052.83 | G39: =SUMPRODUCT(B7:B37,G7:G37) -> 999490.7 | H39: =SUMPRODUCT(B7:B37,H7:H37) -> 3167855.45 | I39: =SUMPRODUCT(B7:B37,I7:I37) -> 1378619.27 | J39: =SUMPRODUCT(B7:B37,J7:J37) -> 554152.17 | K39: =SUMPRODUCT(B7:B37,K7:K37) -> 2590792.7 | L39: =SUMPRODUCT(B7:B37,L7:L37) -> 110439579 | M39: =SUMPRODUCT(B7:B37,M7:M37) -> 836759.76 | N39: =SUMPRODUCT(B7:B37,N7:N37) -> 53180395.83 | O39: =SUMPRODUCT($B7:$B37,O7:O37) -> 398623.79 | P39: =SUMPRODUCT(B7:B37,P7:P37) -> 10115241.26 | Q39: =SUMPRODUCT(B7:B37,Q7:Q37) -> 244224011.1
A40: Теплота згоряння (середньозважене значення за місяць), МДж/м³ | C40: =C39/C38 -> 38.29233656 | D40: =D39/D38 -> 38.2902874 | E40: =E39/E38 -> 38.29058988 | F40: =F39/F38 -> 38.28785612 | G40: 38.29026166 | H40: 38.29057015 | I40: 38.29178874 | J40: 38.28868721 | K40: 38.28908578 | L40: 38.29385024 | M40: 38.29038393 | N40: 38.29266658 | O40: 38.29239097 | P40: 38.28891166 | Q40: =Q39/Q38 -> 38.29191138
A41: Теплота згоряння (середньозважене значення за місяць), ккал/м³ | C41: =C40*238.8459 -> 9145.967588 | D41: =D40*238.8459 -> 9145.478154 | E41: 9145.550401 | F41: 9144.897454 | G41: 9145.472006 | H41: 9145.54569 | I41: 9145.836744 | J41: 9145.095957 | K41: 9145.191153 | L41: 9146.329126 | M41: 9145.501211 | N41: =N40*238.8459 -> 9146.046412 | O41: 9145.980584 | P41: 9145.149565 | Q41: =Q40*238.8459 -> 9145.866036
A42: Теплота згоряння (середньозважене значення за місяць), кВт*год./м³ | C42: =C40/3.6 -> 10.63676016 | D42: =D40/3.6 -> 10.63619094 | E42: 10.63627497 | F42: 10.63551559 | G42: 10.63618379 | H42: 10.63626949 | I42: 10.63660798 | J42: 10.63574645 | K42: 10.63585716 | L42: 10.63718062 | M42: 10.63621776 | N42: 10.63685183 | O42: 10.63677527 | P42: 10.63580879 | Q42: =Q40/3.6 -> 10.63664205

Sheet додаток13,9
A2: Додаток до Паспорту фізико-хімічних показників природного газу №13
A4: Область | B4: ГРС, прямий споживач | C4: Cередньозважене значення вищої теплоти згоряння
C5: МДж/м³ | D5: ккал/м³ | E5: кВт*год./м³
A6: Хмельницька область | B6: АГНКС Шепетівка | C6: 38.29 | D6: 9146 | E6: 10.64
B7: ГРС Пасічна | C7: 38.29 | D7: 9145 | E7: 10.64
B8: ГРС Самчики | C8: 38.29 | D8: 9146 | E8: 10.64
B9: ГРС Староконстантинів | C9: 38.29 | D9: 9145 | E9: 10.64
B10: ГРС Миролюбне | C10: 38.29 | D10: 9145 | E10: 10.64
B11: ГРС Кузьмин | C11: 38.29 | D11: 9146 | E11: 10.64
B12: ГРС Щиборівка | C12: 38.29 | D12: 9146 | E12: 10.64
B13: ГРС Хролін | C13: 38.29 | D13: 9145 | E13: 10.64
B14: ГРС Гриців | C14: 38.29 | D14: 9145 | E14: 10.64
B15: ГРС Шепетівка | C15: 38.29 | D15: 9146 | E15: 10.64
B16: ГРС Кам'янка | C16: 38.29 | D16: 9146 | E16: 10.64
B17: ГРС Славута | C17: 38.29 | D17: 9146 | E17: 10.64
B18: ГРС Радошівка | C18: 38.29 | D18: 9146 | E18: 10.64
B19: ГРС Ізяслав | C19: 38.29 | D19: 9145 | E19: 10.64
A20: Середньозважене значення вищої теплоти згоряння по маршруту № 13 | C20: 38.29 | D20: 9146 | E20: 10.64
A24: В.о.начальника управління Красилівського ЛВУМГ Семенюк П.В.
A25: Підрозділу підприємства, якому підпорядкована лабораторія | D25: прізвище | E25: підпис | F25: дата
A26: Завідувач лабораторією Пілецька С.А.
A27: Лабораторія, де здійснювалось вимірювання газу | D27: прізвище | E27: підпис | F27: дата
A28: Начальник служби метрології Мягкий С.В.
A29: Підрозділу, відповідального за облік газу за маршрутом | D29: прізвище | E29: підпис | F29: дата

Sheet variablesList (hidden)
A1: 3 | B1: x:\gaysin | C1: 10, 11, 24, 25, 127, 128, 132, 180, 207, 215 | D1: x:\
B2: x:\Illinci
B3: x:\Talne
